Cogmind - Beta 16.1 @@@ ROGUE MODE // 2026.02.11 @ 05:08:41 Player: H3-MLN Result: Destroyed by S-27 Virus with Autogun Performance ------------- Evolutions (5) 2500 Regions Visited (6) 1200 Robots Destroyed (65) 325 Value Destroyed (1940) 1940 Prototype IDs (25) 500 Alien Tech Used (0) 0 Bonus (994) 994 TOTAL SCORE: 7459 Bonus ------- Follower Combat Kills 722 Registered with UFD 300 Met Optimus in HQ 500 Friendly Fire -528 Cogmind --------- Core Integrity 0/1000 Matter 267/300 Energy 68/100 System Corruption 7% Temperature Warm (113) Movement Core (100) Ox1 Location -5/Factory Parts ------- > --- POWER (1) -------- (None) > --- PROPULSION (4) --- (None) > --- UTILITY (6) ------ (None) > --- WEAPON (6) ------- Companion Sword > --- INVENTORY (5) ---- Micro Fission Core High-capacity Matter Pod (200) Segregator Peak State ------------ > --- POWER ------------ Improved Deuterium Engine > --- PROPULSION ------- Wheel Armored Wheel Armored Wheel > --- UTILITY ---------- Humpback Improved Melee Analysis Suite Improved Melee Analysis Suite Hardened Medium Armor Plating > --- WEAPON ----------- 1B-0RG's Assimilator Companion Sword > --- INVENTORY -------- Deuterium Engine Cargo Legs Wheel Wheel Scrap Suit High-capacity Storage Unit High-capacity Matter Pod Matter Compressor Matter Compressor A0-MCA's Component Scanner Hypervelocity Gauss Rifle Heavy Flak Cannon Heavy Flak Cannon Rocket Launcher CPS Tube CPS Tube Vortex Trap DRS Beacon [Rating: 101] Favorites ----------- Power Subdweller Power Source Engine Subdweller Power Source Power Core Micro Fission Core Propulsion Spiked Treads Treads Spiked Treads Leg Cargo Legs Wheel Armored Wheel Utility Large Storage Unit Device Structural Scanner Storage Large Storage Unit Processor Improved Melee Analysis Suite Protection Light Armor Plating Weapon Slug Cannon Energy Gun EM Shotgun Energy Cannon Subdweller Beam Cannon Ballistic Gun Assault Rifle Ballistic Cannon Slug Cannon Launcher Grenade Launcher Special Weapon CPS Tube Impact Weapon Heavy Flail Slashing Weapon Companion Sword Special Melee Weapon 1B-0RG's Assimilator Build | -11 -10 -10 -10 -8 -6 -5 ------- Run | Yrd Mat Min Sub Scr Fac Fac Slots Evolved 10 | . . . . . 8 2 Power . | . . . . . . . Propulsion 2 | . . . . . 1 1 Utility 4 | . . . . . 3 1 Weapon 4 | . . . . . 4 . Parts Attached 78 | 6 6 1 18 8 13 26 Power 7 | 1 1 . 2 1 1 1 Engine 6 | 1 1 . 2 1 1 . Core 1 | . . . . . . 1 Reactor . | . . . . . . . Propulsion 18 | 2 . . 4 2 2 8 Treads 5 | 1 . . 2 . . 2 Leg 4 | . . . . . 1 3 Wheel 9 | 1 . . 2 2 1 3 Hover . | . . . . . . . Flight . | . . . . . . . Utility 23 | 1 3 . 4 1 6 8 Device 6 | . . . 2 . 1 3 Storage 6 | 1 1 . 1 1 1 1 Processor 6 | . 1 . . . 2 3 Hackware . | . . . . . . . Protection 5 | . 1 . 1 . 2 1 Artifact . | . . . . . . . Weapon 30 | 2 2 1 8 4 4 9 Energy Gun 7 | . 2 . 4 . . 1 Energy Cannon 2 | . . . 2 . . . Ballistic Gun 3 | 2 . . . . . 1 Ballistic Cannon 4 | . . . 2 . 2 . Launcher 2 | . . 1 . . 1 . Special Weapon 2 | . . . . 2 . . Impact Weapon 1 | . . . . 1 . . Slashing Weapon 8 | . . . . 1 . 7 Piercing Weapon . | . . . . . . . Special Melee Weapon 1 | . . . . . 1 . Unidentified Prototypes 6 | . . . 1 1 1 3 Parts Lost 32 | . . . 2 . 12 18 Power 3 | . . . . . 2 1 Propulsion 11 | . . . 1 . 3 7 Utility 10 | . . . . . 4 6 Weapon 8 | . . . 1 . 3 4 Highest Loss Streak 14 | . . . 1 . 9 14 To Critical Strikes 1 | . . . . . 1 . Average Backups 11 | 2 11 14 14 7 13 14 Power . | . 1 . . . . 1 Propulsion 1 | 1 2 3 2 1 1 2 Utility 4 | . 3 5 5 3 5 4 Weapon 3 | . 3 6 5 1 3 4 Tool/Special . | . . . . . . . Unused Backups 24 | . 1 1 9 2 . 11 Power 3 | . . 1 . . . 2 Propulsion 3 | . . . 3 . . . Utility 9 | . . . 3 1 . 5 Weapon 7 | . 1 . 3 1 . 2 Tool/Special 2 | . . . . . . 2 Average Slot Usage (%) 87 | . 97 100 96 83 51 57 Engine 12 | . 14 14 14 14 5 . Treads 16 | . 14 14 25 11 . 5 Wheel 9 | . 14 14 2 16 14 . Device 2 | . . . 5 . . 4 Storage 13 | . 14 14 14 13 5 7 Protection 3 | . 6 14 5 . 5 1 Energy Gun 2 | . 14 27 1 . . . Energy Cannon 7 | . . . 12 4 . . Ballistic Cannon 10 | . . . 13 12 . . Special Weapon 2 | . . . . 7 . . Slashing Weapon 1 | . . . . 1 5 19 Peak Build Rating 101 | 6 11 10 40 49 101 98 Average Rating 32 | 4 8 9 18 42 89 70 On Entrance 21 | . 6 10 10 40 46 35 Avg Prop Armor Cover (%) 10 | 12 9 9 10 9 . 19 Naked Turns 8 | . . . . . . 8 Heaviest Build 277 | 12 34 34 60 220 277 76 Greatest Support 85 | 20 10 10 40 24 55 85 Greatest Overweight (x) 17 | 1 3 3 4 17 11 5 Average Overweight (x) 3 | . 2 3 1 6 9 . Largest Inventory Capacity 35 | 8 15 15 25 35 35 20 Average Capacity 22 | 6 14 15 17 29 34 19 Most Carried 35 | 4 15 15 25 35 21 20 Average Carried 20 | 2 11 14 16 27 17 17 Final Capacity 35 | 8 15 15 25 35 20 5 Final Carried 35 | 4 15 15 25 35 13 3 Scrap Suit Usage (%) 1 | . . . . . 4 23 Class Distribution -------------------- 60% | Mutant 21% | Hauler-Mutant 15% | Derelict-Mutant Dominant Class ---------------- Mutant | -10/Materials Mutant | -10/Mines Mutant | -10/Subcaves Hauler-Mutant | -8/Scraptown Hauler-Mutant | -6/Factory Mutant | -5/Factory Resources | -11 -10 -10 -10 -8 -6 -5 ----------- Run | Yrd Mat Min Sub Scr Fac Fac Matter Collected 3885 | 200 175 345 912 330 1631 292 Remotely . | . . . . . . . Salvage Created 2637 | . 322 290 322 7 315 1381 Parts 128 | . 24 24 12 4 15 49 Haulers Intercepted 5 | . 2 . . . 1 2 Recyclers Shooed 3 | . . . . . 1 2 Parts Field Recycled . | . . . . . . . Retrieved Matter . | . . . . . . . Parts Self-Destructed 7 | . . . 7 . . . Prevented 5 | . . . 5 . . . Parts Restored . | . . . . . . . Kills | -11 -10 -10 -10 -8 -6 -5 ------- Run | Yrd Mat Min Sub Scr Fac Fac Combat Hostiles Destroyed 41 | . 6 8 7 . 5 15 Melee 13 | . . . . . 2 11 Guns 12 | . 6 4 2 . . . Cannons 4 | . . . 4 . . . AOE 11 | . . 4 . . 3 4 Classes Destroyed 17 | . 4 2 4 . 5 2 Worker 4 | . . . . . 3 1 Builder 2 | . . . . . 1 1 Tunneler 1 | . . 1 . . . . Hauler 5 | . 2 . . . 1 2 Recycler 5 | . . 2 . . . 3 Operator 1 | . . . . . . 1 Turret 2 | . . . 2 . . . Watcher 2 | . 2 . . . . . Swarmer 11 | . 3 6 1 . . 1 Saboteur 1 | . . . . . 1 . Grunt 12 | . 3 2 2 . . 5 Sentry 3 | . . . 1 . . 2 Specialist 2 | . . . . . 2 . Hunter 5 | . . . . . 2 3 Programmer 4 | . . . . . . 4 Artisan 1 | . . . 1 . . . Subdweller 5 | . . . 4 1 . . Best Kill Streak 6 | . 3 4 2 . 4 6 Combat Bots Only 4 | . 3 3 2 . 4 4 Max Kills in Single Turn 6 | . 1 2 1 1 3 6 Gunslinging . | . . . . . . . Exploded 4 | . . 2 . . 3 4 Melee 1 | . . . . . 1 1 Uniques/NPCs Destroyed . | . . . . . . . Combat | -11 -10 -10 -10 -8 -6 -5 -------- Run | Yrd Mat Min Sub Scr Fac Fac Hostile Shots Fired 571 | . 15 10 82 . 218 246 Missed 164 | . 2 4 39 . 51 68 Hits 407 | . 13 6 43 . 167 178 Projectile 407 | . 13 6 43 . 167 178 Critical Strikes 11 | . . . 1 . 2 8 Damage Taken 7484 | . 137 93 588 . 3068 3598 Core 1864 | . 17 38 71 . 726 1012 Absorbed by Shields . | . . . . . . . Regen/Repaired (Parts) 140 | . 32 . . . 108 . Core Remaining (%) 54 | 100 . . . 49 14 . Volleys Fired 122 | . 24 12 75 1 6 4 Largest 2 | . 2 2 2 1 1 2 Hottest 120 | . 90 90 120 . 33 108 Shots Fired 184 | . 48 21 100 1 6 8 Gun 94 | . 48 18 20 . . 8 Cannon 80 | . . . 80 . . . Launcher 9 | . . 3 . . 6 . Special 1 | . . . . 1 . . Kinetic 84 | . 26 . 54 . . 4 Thermal 38 | . . . 34 . . 4 Explosive 9 | . . 3 . . 6 . Electromagnetic 52 | . 22 18 12 . . . Robot Hit Streak 15 | . 6 15 5 4 1 4 Robot Miss Streak 6 | . 4 3 6 . 2 2 Penetration Max . | . . . . . . . Secondary Targets 1 | . . . 1 . . . Max Gunslinging Chain 1 | . . . 1 . . . Shots Hit Robots 171 | . 30 14 36 3 19 69 Core Hits 104 | . 18 15 17 . 26 28 Critical Kills 1 | . . . 1 . . . Critical Parts Destroyed . | . . . . . . . Critical Strikes 7 | . . . 2 . . 5 Meltdown 1 | . . . 1 . . . Destroy 1 | . . . 1 . . . Sever 5 | . . . . . . 5 Melee Attacks 123 | . . . . 2 21 100 Impact 2 | . . . . 2 . . Slashing 121 | . . . . . 21 100 Piercing . | . . . . . . . Sneak Attacks 12 | . . . . 2 5 5 Combat Hostiles . | . . . . . . . Follow-up Attacks 19 | . . . . . . 19 Damage Inflicted 8026 | . 354 565 847 200 1712 4348 Guns 875 | . 354 228 204 . . 89 Cannons 643 | . . . 643 . . . Explosions 2442 | . . 337 . . 791 1314 Melee 4066 | . . . . 200 921 2945 Ramming . | . . . . . . . Kinetic 504 | . 173 . 310 . . 21 Thermal 526 | . . 84 374 . . 68 Explosive 1044 | . . 253 . . 791 . Electromagnetic 572 | . 181 228 163 . . . Impact 200 | . . . . 200 . . Slashing 3866 | . . . . . 921 2945 Piercing . | . . . . . . . Entropic 1314 | . . . . . . 1314 Highest Corruption 7 | . . . . . . 7 Average Corruption 5 | . . . . . . 5 Corruption Purged . | . . . . . . . Corruption Blocked . | . . . . . . . Effects 4 | . . . . . . 4 Message Errors 2 | . . . . . . 2 Heat Flow Errors 1 | . . . . . . 1 Data Loss (major) 1 | . . . . . . 1 Overload Shots . | . . . . . . . Overflow Damage 393 | . . 8 . 50 82 253 Projectiles . | . . . . . . . Explosions 68 | . . 8 . . . 60 Melee 325 | . . . . 50 82 193 Knockbacks 3 | . . . 2 1 . . Impact 1 | . . . . 1 . . Kinetic 2 | . . . 2 . . . Secondary . | . . . . . . . Self-Inflicted Damage 192 | . . 38 . . . 154 Shots 2 | . . 1 . . . 1 Rammed . | . . . . . . . Targets Rammed . | . . . . . . . Kicked . | . . . . . . . Crushed . | . . . . . . . Highest Temperature 307 | . 273 156 307 . . 192 Average Temperature 89 | . 120 55 86 . . 82 Received Heat Transfer 1055 | . 30 9 511 . 27 478 Siege Activations . | . . . . . . . Martial Activations . | . . . . . . . Shielding Activations . | . . . . . . . Robots Disrupted 1 | . . . . . . 1 Combat Hostiles 1 | . . . . . . 1 Robots Corrupted 1 | . . . . 1 . . Combat Hostiles . | . . . . . . . Parts Fried 1 | . . 1 . . . . Impact Corruptions 2 | . . . . 2 . . Robots Melted 1 | . . . 1 . . . Combat Hostiles 1 | . . . 1 . . . Parts Melted 6 | . . . 4 . 1 1 Heat Transferred 705 | . . 100 494 . . 111 Parts Sabotaged . | . . . . . . . Parts Stolen . | . . . . . . . Parts Stripped . | . . . . . . . Power Chain Reactions 1 | . . 1 . . . . Alert | -11 -10 -10 -10 -8 -6 -5 ------- Run | Yrd Mat Min Sub Scr Fac Fac Maximum Alert Level 1 | . . . . . 1 . Low Security (%) 95 | 100 100 100 . . 87 100 Level 1 4 | . . . . . 12 . Level 2 . | . . . . . . . Level 3 . | . . . . . . . Level 4 . | . . . . . . . Level 5 . | . . . . . . . High Security . | . . . . . . . Max Security . | . . . . . . . Peak Influence 270 | . 120 104 . . 270 171 Initial 60 | . . 21 . . . 60 Average 50 | . 29 33 . . 79 43 Influence Increases 1933 | . 180 234 205 . 760 554 Destroy 0b10 Robot/C 1180 | . 120 160 120 . 480 300 Destroy 0b10 Robot/NC 125 | . 20 15 . . 50 40 Destroy Leader 232 | . 28 30 10 . 80 84 Allied During Kill 76 | . . . . . 76 . Successful Hack 12 | . 12 . . . . . Disable Machine 15 | . . . . . . 15 Destroy Structure 113 | . . 29 . . 14 70 Partial Spotted 30 | . . . . . . 30 Lose Combat Pursuer 150 | . . . 75 . 60 15 Influence Decreases 1824 | . 124 290 106 99 636 569 Entered New Map 198 | . . 35 . 99 . 64 Time Decay 1096 | . 124 255 76 . 296 345 Lost Part 290 | . . . 10 . 120 160 Lost Ally 240 | . . . 20 . 220 . Squads Dispatched 12 | . 1 . . . 8 3 Investigation 2 | . 1 . . . . 1 Extermination 3 | . . . . . 2 1 Reinforcement 1 | . . . . . . 1 Assault 4 | . . . . . 4 . Garrison 2 | . . . . . 2 . Intercept . | . . . . . . . Searches Triggered . | . . . . . . . Construction Impeded . | . . . . . . . Haulers Reinforced 1 | . . . . . . 1 Active Scanning Responses . | . . . . . . . Cargo Convoy Interrupts 1 | . . . . . 1 . Stealth | -11 -10 -10 -10 -8 -6 -5 --------- Run | Yrd Mat Min Sub Scr Fac Fac Distress Signals 7 | . 1 . . . 3 3 Communications Jammed . | . . . . . . . Distress Signals . | . . . . . . . Times Spotted 113 | . 11 7 20 . 47 28 Peak Tracking Total 10 | . 4 3 3 . 9 10 Tactical Retreats 5 | . . . 2 . 2 1 Traps | -11 -10 -10 -10 -8 -6 -5 ------- Run | Yrd Mat Min Sub Scr Fac Fac Traps Triggered 5 | . 2 . 1 . . 2 Indirectly . | . . . . . . . Trap Hack Attempts . | . . . . . . . Triggered . | . . . . . . . Disarmed . | . . . . . . . Reprogrammed . | . . . . . . . Reused 1 | . . . 1 . . . Traps Extracted . | . . . . . . . Installed 2 | . . . 1 . . 1 Triggered . | . . . . . . . Most Traps Carried 1 | . . 1 1 1 1 1 Machines | -11 -10 -10 -10 -8 -6 -5 ---------- Run | Yrd Mat Min Sub Scr Fac Fac Machines Disabled 4 | . . . 3 . . 1 Max in Single Turn 2 | . . . 2 . . 1 Garrison Access 2 | . . . . . 2 . Machines Repaired . | . . . . . . . Machines Dismantled . | . . . . . . . Machines Sabotaged . | . . . . . . . Overloaded Fab Kills . | . . . . . . . Hacking | -11 -10 -10 -10 -8 -6 -5 --------- Run | Yrd Mat Min Sub Scr Fac Fac Machines Accessed 17 | . 4 . 3 4 3 3 Terminals 8 | . 2 . . . 3 3 Fabricators . | . . . . . . . Repair Stations 1 | . 1 . . . . . Recycling Units 1 | . 1 . . . . . Scanalyzers . | . . . . . . . Garrison Access . | . . . . . . . Total Hacks 39 | . 11 . 3 12 8 5 Successful 22 | . 7 . 3 12 . . Failed 17 | . 4 . . . 8 5 Catastrophic 3 | . . . . . 1 2 Database Lockouts . | . . . . . . . Manual 13 | . 4 . . . 6 3 Terminals 20 | . 7 . . . 8 5 Fabricators . | . . . . . . . Repair Stations 3 | . 3 . . . . . Recycling Units 1 | . 1 . . . . . Scanalyzers . | . . . . . . . Garrison Access . | . . . . . . . Terminal Hacks 19 | . 4 . 3 12 . . Record 4 | . . . . 4 . . Part Schematic 1 | . 1 . . . . . Robot Analysis 8 | . 2 . . 6 . . Open Door 2 | . . . 1 1 . . Terminal Index 1 | . 1 . . . . . Proto ID Catalog 2 | . . . 1 1 . . Release Object 1 | . . . 1 . . . Fabricator Hacks . | . . . . . . . Repair Station Hacks 2 | . 2 . . . . . Scan Component 1 | . 1 . . . . . Repair 1 | . 1 . . . . . Recycling Unit Hacks 1 | . 1 . . . . . Report Inventory 1 | . 1 . . . . . Scanalyzer . | . . . . . . . Garrison Access Hacks . | . . . . . . . Unauthorized Hacks . | . . . . . . . Terminals . | . . . . . . . Fabricators . | . . . . . . . Repair Stations . | . . . . . . . Recycling Units . | . . . . . . . Scanalyzers . | . . . . . . . Garrison Access . | . . . . . . . Data Cores Recovered 1 | . . . . . . 1 Used . | . . . . . . . Hacking Detections 9 | . 3 . . . 3 3 Full Trace Events 1 | . . . . . . 1 Feedback Events . | . . . . . . . Feedback Blocked . | . . . . . . . Robot Schematics Acquired . | . . . . . . . Robots Built . | . . . . . . . Authchips . | . . . . . . . Time . | . . . . . . . Total Robot Build Rating . | . . . . . . . Part Schematics Acquired 1 | . 1 . . . . . Parts Built . | . . . . . . . Authchips . | . . . . . . . Time . | . . . . . . . Total Part Build Rating . | . . . . . . . Part Studies Acquired . | . . . . . . . Parts Repaired 1 | . 1 . . . . . Time 26 | . 26 . . . . . Parts Recycled . | . . . . . . . Recycled Matter . | . . . . . . . Retrieved Matter . | . . . . . . . Retrieved Components . | . . . . . . . Parts Scanalyzed . | . . . . . . . Part Schematics Acquired . | . . . . . . . Parts Damaged . | . . . . . . . Bothacking | -11 -10 -10 -10 -8 -6 -5 ------------ Run | Yrd Mat Min Sub Scr Fac Fac Used RIF Installer . | . . . . . . . Robots Hacked . | . . . . . . . Non-combat . | . . . . . . . Combat . | . . . . . . . Robot Hacks Applied . | . . . . . . . Relay Couplers Released 2 | . . . . . 2 . Machine Destruction 2 | . . . . . 2 . Fabnet Peak Effective % . | . . . . . . . Robots Rewired . | . . . . . . . Allies Hacked 2 | . . . . . 2 . Hacks Repelled . | . . . . . . . Allies | -11 -10 -10 -10 -8 -6 -5 -------- Run | Yrd Mat Min Sub Scr Fac Fac Total Allies 9 | . . . 8 . 1 . Largest Group 5 | . . . 5 4 3 . Highest-Rated Group 95 | . . . 95 76 57 . Highest-Rated Ally 41 | . . . 19 19 41 . Initial UFD Resources 26 | . . . . . 22 26 Total Orders 1 | . . . . . 1 . AID 1 | . . . . . 1 . Ally Attacks 101 | . . . 12 . 89 . Total Damage 3207 | . . . 459 . 2748 . Kills 28 | . . . 4 . 24 . Allies Corrupted 1 | . . . . 1 . . Allies Melted . | . . . . . . . Borg Created 11 | . . . . . 11 . Largest Collective 4 | . . . . . 4 . Intel | -11 -10 -10 -10 -8 -6 -5 ------- Run | Yrd Mat Min Sub Scr Fac Fac Active Infowar (turns) 2491 | . 218 . 2016 . . 257 Optics 218 | . 218 . . . . . Structural 2273 | . . . 2016 . . 257 Robot Analysis Total 8 | . 2 . . 6 . . Derelict Logs Recovered 4 | . . . 1 3 . . Drone Launches . | . . . . . . . Drone Recoveries . | . . . . . . . Exploration | -11 -10 -10 -10 -8 -6 -5 ------------- Run | Yrd Mat Min Sub Scr Fac Fac Turns Passed 17516 | 58 626 812 8046 5880 1212 882 Spaces Moved 7839 | 53 400 555 3345 2586 443 457 Core 20 | 6 . . . . . 14 Treads 2707 | 1 . . 2327 379 . . Legs 464 | . . . . . 27 437 Wheels 4648 | 46 400 555 1018 2207 416 6 Hover . | . . . . . . . Flight . | . . . . . . . Fastest Speed 50 | 50 95 125 125 105 130 50 Average Speed 204 | 85 117 125 220 225 230 127 Slowest Speed 360 | 160 125 125 260 360 255 200 Overloaded Moves . | . . . . . . . Propulsion Burnouts . | . . . . . . . Robots Hopped . | . . . . . . . Potential Cave-ins . | . . . . . . . Cave-ins Triggered . | . . . . . . . Exploration Rate (%) 53 | 3 63 99 95 91 11 9 Regions Visited 6 Branch Regions 3 Pre-discovered Areas . | . . . . . . . Known Exits Taken . | . . . . . . . Unknown Exits Taken 6 | 1 1 1 1 1 1 . Scrap Searched 25 | . . 1 16 8 . . Spaces Dug 23 | . . 6 10 . . 7 Terrain Destroyed 117 | . . 34 21 . 24 38 Melee 7 | . . . . . . 7 Projectile 21 | . . . 21 . . . AOE 89 | . . 34 . . 24 31 Terrain Rammed . | . . . . . . . Walls Destroyed . | . . . . . . . Machines Disabled . | . . . . . . . Actions | -11 -10 -10 -10 -8 -6 -5 --------- Run | Yrd Mat Min Sub Scr Fac Fac Total 8994 | 62 508 652 3924 2638 576 634 Wait 675 | . 62 82 419 4 66 42 Move 7833 | 52 399 554 3344 2585 442 457 Hop . | . . . . . . . Pick Up 83 | 4 13 1 27 20 9 9 Fast Attach 40 | 6 3 . 3 6 3 19 Attach 27 | . . . 3 2 9 13 Detach 5 | . . . . 1 . 4 Swap 29 | . 4 2 19 . 4 . Drop 68 | . 3 1 33 16 4 11 Fire 122 | . 24 12 75 1 6 4 Melee 92 | . . . . 2 21 69 Ram . | . . . . . . . Kick . | . . . . . . . Crush . | . . . . . . . Escape Stasis 5 | . . . . . . 5 Rewire 1 | . . . . 1 . . Trap 2 | . . . 1 . . 1 Miscellaneous 12 | . . . . . 12 . Route ------- -11/Scrapyard -10/Materials (discovered 2 exits: [*Mat] / [*Min]) -10/Mines (discovered 4 exits: [*Mat x2] / [*Exi] / *Sub) -10/Subcaves (discovered 4 exits: [*Mat x2] / [*Rec] / *Scr) -8/Scraptown (discovered 2 exits: *Fac x2) -6/Factory -5/Factory History --------- Turn | Location | Event 15 | -11/Scrapyard | Discovered new exit (range 16) 59 | -11/Scrapyard | Entered Materials 310 | -10/Materials | Build established: Mutant 387 | -10/Materials | Discovered new exit (range 13) 518 | -10/Materials | Discovered new exit (range 7) 616 | -10/Materials | Repaired Lgt. Armor Plating 685 | -10/Materials | Entered Mines 685 | -10/Mines | Discovered new exit (range 11) 803 | -10/Mines | Discovered new exit (range 10) 1105 | -10/Mines | Discovered new exit (range 9) 1153 | -10/Mines | Deemed a non-threat by the Exiles lab entrance 1153 | -10/Mines | Discovered new exit (range 5) 1228 | -10/Mines | Found a hidden stash of uninstalled traps 1497 | -10/Mines | Entered Subcaves 1498 | -10/Subcaves | Approached by a straggling Scientist 1893 | -10/Subcaves | A swath of the cavern ceiling suddenly collapsed 2074 | -10/Subcaves | Shifting Twisted Machinery released Spk. Treads 2669 | -10/Subcaves | Shifting Twisted Machinery released Battle Rifle 2670 | -10/Subcaves | Shifting Twisted Machinery released Battle Rifle 4919 | -10/Subcaves | Visited triangular shrine 4936 | -10/Subcaves | Found Prototype Device 4942 | -10/Subcaves | Identified V3-11A's Pendant 4947 | -10/Subcaves | Befriended Subdweller 5185 | -10/Subcaves | Shifting Twisted Machinery released Slug Cannon 5201 | -10/Subcaves | A swath of the cavern ceiling suddenly collapsed 5561 | -10/Subcaves | Discovered new exit (range 16) 5816 | -10/Subcaves | Befriended Subdweller 5896 | -10/Subcaves | Befriended Subdweller 5989 | -10/Subcaves | Befriended Subdweller 6009 | -10/Subcaves | Befriended Subdweller 6009 | -10/Subcaves | Befriended Subdweller 6050 | -10/Subcaves | Discovered new exit (range 12) 6073 | -10/Subcaves | Learned Materials emergency access door positions 6210 | -10/Subcaves | Visited 4L-MR0's lab 6469 | -10/Subcaves | Discovered new exit (range 7) 6529 | -10/Subcaves | Befriended Subdweller 6530 | -10/Subcaves | Disturbed a concealed Subdweller 6534 | -10/Subcaves | Befriended Subdweller 6587 | -10/Subcaves | Core integrity fell below 50% 7248 | -10/Subcaves | Disturbed a concealed Subdweller 7835 | -10/Subcaves | Found Prototype Special Melee Weapon 7841 | -10/Subcaves | Found Cargo Legs 7976 | -10/Subcaves | Build established: Derelict-Mutant 9192 | -10/Subcaves | Found SUBCON Basin 9458 | -10/Subcaves | Build established: Mutant 9543 | -10/Subcaves | Entered Scraptown 9543 | -8/Scraptown | Accompanied by 4 allies 9731 | -8/Scraptown | Visited Bundlers 9951 | -8/Scraptown | Visited Comm Corps 10023 | -8/Scraptown | Visited Scrapoid Research Area 10134 | -8/Scraptown | Visited Fellowship of the Rings 10210 | -8/Scraptown | Visited Shadow of the Wyrm 10532 | -8/Scraptown | Scanned Subdweller tech in exchange for log data 10534 | -8/Scraptown | Learned Factory terminal intel 10538 | -8/Scraptown | Learned Research stockpile data 10541 | -8/Scraptown | Learned Research trap positions 10588 | -8/Scraptown | Discovered new exit (range 13) 11000 | -8/Scraptown | Delivered V3-11A's Pendant to T0-NE2 in exchange for information 11226 | -8/Scraptown | Visited UFD Registry 11226 | -8/Scraptown | Registered with UFD as "Laserbot" 11277 | -8/Scraptown | Visited Abandonware Association 11292 | -8/Scraptown | Learned abandonware demo "POISON.EXE" 11292 | -8/Scraptown | Learned abandonware demo "REBOOT5.EXE" 11331 | -8/Scraptown | Visited Observation Area 11349 | -8/Scraptown | Visited Science Guys 11397 | -8/Scraptown | Visited Scrap Suit Storage 11462 | -8/Scraptown | Visited Sword Containment 11475 | -8/Scraptown | Visited Derelict Rescue Squad 11513 | -8/Scraptown | Visited A0-MCA Data Center 11522 | -8/Scraptown | Given a C+ rating by A0-MCA 11531 | -8/Scraptown | Found A0-MCA's Component Scanner 11569 | -8/Scraptown | Visited Analyses Database 11605 | -8/Scraptown | Visited Chapter 10 11674 | -8/Scraptown | Visited LU-1G1's Boring Crew 11836 | -8/Scraptown | Build established: Derelict-Mutant 11852 | -8/Scraptown | Visited Red Mages 11896 | -8/Scraptown | Visited SPCMW 12545 | -8/Scraptown | Attached CPS modules to M3-ZUG(R). 12678 | -8/Scraptown | Delivered Scrap Shield to a Scientist 13028 | -8/Scraptown | Build established: Hauler-Mutant 13053 | -8/Scraptown | Found Scrap Suit 14737 | -8/Scraptown | Found Prototype Slashing Weapon 14737 | -8/Scraptown | Identified Companion Sword 14790 | -8/Scraptown | Found DRS Beacon 14938 | -8/Scraptown | Discovered new exit (range 5) 15312 | -8/Scraptown | Met Optimus 15312 | -8/Scraptown | Accepted into 0bPrime 15423 | -8/Scraptown | Entered Factory 15423 | -6/Factory | Accompanied by 3 allies 15423 | -6/Factory | Evolved 8 slots: Propulsion x1, Utility x3, Weapon x4 15424 | -6/Factory | Loaded intel: 28 terminal locations 15424 | -6/Factory | Identified 1B-0RG's Assimilator 15425 | -6/Factory | Assimilating 8C-NRX(R) into Collective. 15449 | -6/Factory | Released subatomizers from SUBCON Basin 15450 | -6/Factory | Assimilating G5-CP9(R) into Collective. 15453 | -6/Factory | Assimilating VB-OVP(R) into Collective. 15566 | -6/Factory | Assimilating Machinist 5a into Collective. 16062 | -6/Factory | Discovered new exit (range 13) 16282 | -6/Factory | Assimilating Serf 5a into Collective. 16347 | -6/Factory | Garrison activated, responded to threat 16388 | -6/Factory | Assimilating Gladiator 5a into Collective. 16485 | -6/Factory | Assimilating Slayer 5a into Collective. 16488 | -6/Factory | Assimilating Slayer 5b into Collective. 16507 | -6/Factory | Cargo convoy interrupted 16508 | -6/Factory | Assimilating Hacker 5a into Collective. 16543 | -6/Factory | Assimilating Hacker 5b into Collective. 16552 | -6/Factory | Lost 3 parts (1p1n1u) 16554 | -6/Factory | Assimilating Slayer 5c into Collective. 16572 | -6/Factory | Core integrity fell below 50% 16581 | -6/Factory | Lost 4 allies 16594 | -6/Factory | Core integrity fell below 20% 16602 | -6/Factory | Attached Cargo Legs, gained temporary slots: Utility x2 16617 | -6/Factory | Lost 9 parts (1p2n3u3w) 16635 | -6/Factory | Entered another Factory area 16635 | -5/Factory | Evolved 2 slots: Propulsion x1, Utility x1 17426 | -5/Factory | Build established: Scavenger-Mutant 17485 | -5/Factory | Core integrity fell below 50% 17507 | -5/Factory | Core integrity fell below 20% 17507 | -5/Factory | Released all parts (5) 17517 | -5/Factory | Destroyed by S-27 Virus with Autogun Last Messages --------------- 17507_ K-01 Serf collects debris. 17507_ U-05 Engineer lays Concrete. 17507_ Released Plasma Sword. 17507_ Released Hcp. Storage Unit. 17507_ Released Imp. Target Analyzer. 17507_ Released Hyp. Gauss Rifle. 17507_ U-05 Engineer builds a Wall. 17507_ Dropped Greatsword. 17508_ Acquired Companion Sword. Companion Sword: "I applaud your need for me." 17508_ S-27 Virus destroyed. 17509_ U-05 Engineer lays Concrete. 17509_ U-05 Engineer builds a Wall. 17509_ Acquired 5 matter. 17510_ U-05 Engineer lays Concrete. 17514_ System corrupted: Heat flow error (+232). 17514_ Connecting with Terminal... 17514_ ALERT: Suspicious activity at Terminal F010. Dispatching Investigation squad. 17515_ U-05 Engineer lays Concrete. Map ----- +----------------------------------------------------+ | #####????## ##????????????????????????????????? | | #####????## ##????????????????????????????????? | | ##????## ##????????????????????????????????? | | ##???### #### ?????????????????????????????? | | " ##???###+##+#### ?????????????????????????????? | | " ###??## # ?????????????????????????????? | | " ####### ! """" # ?????????????????????????????? | | " ####### """" # ?????????????????????????????? | | " # #% """" # ?????????????????????????????? | | " # # """" # ???????????????? #???????????? | | " # + """" ###?????????????? #???????????? | | " # # """"%" #????????????? +???????????? | | " # # "" " ###?????????? #???????????? | | # # " #????????? #???????????? | | #### ###/"""=!H%############ #???????????? | | %H!=%= ! #???????????? | | % =%* % #???????????? | | % u=*/!|!% #???????????? | | """ """ [%=[! !! #???????????? | | """ """ %%[|%&/ #???????????? | | """ """ ####""""" ;;/####+######+#??????????????? | | % % ####""""""";;# #?????????????????? | | "%% """ # ; """s! #?????????????????? | | """ %"" # """ """ !# """ #?????????????????? | | """ %"" # """ """ # """s #?????????????????? | | # """ """ # @ s #?????????????????? | | """ ""% # ? # #?????????????????? | | """ """ #! ?""" """ # #?????????????????? | | """ """ # ???"" ?"" # ""T"" #?????????????????? | | # ????" ??" # """"" #?????????????????? | | + ???? ?? ##########?????????????????? | | ????????????###???????????????????????????? | | ? ???????????????????????????????????????????? | | #### ???????????????????????????????????????????? | | ???? ????????????????????????????????????????????? | | ???? ????????????????????????????????????????????? | | ???? ????????????????????????????????????????????? | | ???? ????????????????????????????????????????????? | | ???? ????????????????????????????????????????????? | | ?????????????????????????????????????????????????? | | ?????????????????????????????????????????????????? | | ?????????????????????????????????????????????????? | | ?????????????????????????????????????????????????? | | ?????????????????????????????????????????????????? | | ?????????????????????????????????????????????????? | | ?????????????????????????????????????????????????? | | ?????????????????????????????????????????????????? | | ?????????????????????????????????????????????????? | | ?????????????????????????????????????????????????? | | ?????????????????????????????????????????????????? | +----------------------------------------------------+ Best States ------------- Heat Dissipation 40 Energy Generation 16 Energy Capacity 550 Matter Stores 300 Matter Capacity 300 Sight Range 18 Terrain Scan Density 10 Armor Coverage 225 Phase Shifting 5 Evasion (%) 60 Melee Accuracy 12 Target Analysis 6 Recoil Reduction 2 Item Schematics ----------------- Huge Storage Unit | -10/Materials | Hacked Robot Schematics ------------------ None Fabricated ------------ Nothing Repaired ---------- Lgt. Armor Plating | 64% | -10/Materials Studied --------- None Alien Tech Used ----------------- None Achievements -------------- None Challenges ------------ None Game ------ Seed ColdDisintegrationAirjet Manual? 0 Play Time 01:09:58 Cumulative 1361.8 hours Start 2026.02.11 @ 03:51:59 End 2026.02.11 @ 05:08:41 Sessions 1 Manual Loads 0 Difficulty Rogue Special Mode None Game No. 454 Rogue 449 Adventurer 4 Explorer 1 Win Type - Total 35 Types 16/5/2/2/1/2/2/1/2/2 Lore% 97 Gallery% 93 Achievement% 86 Wizard Run 0 Options --------- Layout 0 ASCII 0 Keyboard 0 Movement Numpad Keybinds 0 Fullscreen 2 Font 18/SmallcapsGlow Map View 76x50 Zoom Use 0% Tactical HUD 1 Map Filters NONE Filters NONE Steam 1 RUN: 838709b8-7975-4d3b-9cb9-1faac7b5dbc9